[Event "The Elitserien 2024/25: round 1 - 3"]
[Site "Scandic Infra City, Kanalvagen 10, Upplands Vasby, Sweden"]
[Date "2024.10.05"]
[Round "2.1"]
[White "Hauge, Lars Oskar"]
[Black "Johansson, Linus"]
[Result "1/2-1/2"]
[TimeControl "90 minutes for 40 moves + 30 minutes for the rest of the game + 30 seconds per move from move one."]
[WhiteTitle "GM"]
[BlackTitle "IM"]
[WhiteFideId "1509276"]
[BlackFideId "1711113"]
[WhiteElo "2484"]
[BlackElo "2416"]

1. e4 {[%clk 01:26:11]} {[%emt 00:04:49]} c5 {[%clk 01:30:50]} {[%emt
00:00:11]} 2. Nf3 {[%clk 01:26:36]} {[%emt 00:00:04]} d6 {[%clk 01:31:15]}
{[%emt 00:00:05]} 3. Nc3 {[%clk 01:27:03]} {[%emt 00:00:04]} Nf6 {[%clk
01:31:28]} {[%emt 00:00:16]} 4. d4 {[%clk 01:27:24]} {[%emt 00:00:10]} cxd4
{[%clk 01:31:53]} {[%emt 00:00:05]} 5. Qxd4 {[%clk 01:27:44]} {[%emt 00:00:09]}
Nc6 {[%clk 01:32:11]} {[%emt 00:00:09]} 6. Qd3 {[%clk 01:28:04]} {[%emt
00:00:13]} a6 {[%clk 01:21:54]} {[%emt 00:10:48]} 7. a3 {[%clk 01:20:09]}
{[%emt 00:08:25]} e6 {[%clk 01:16:30]} {[%emt 00:05:52]} 8. Bf4 {[%clk
01:19:36]} {[%emt 00:01:04]} h6 {[%clk 01:09:36]} {[%emt 00:07:24]} 9. Be2
{[%clk 01:02:03]} {[%emt 00:18:02]} e5 {[%clk 00:59:50]} {[%emt 00:10:17]} 10.
Be3 {[%clk 01:01:21]} {[%emt 00:01:12]} Be6 {[%clk 01:00:03]} {[%emt 00:00:16]}
11. O-O {[%clk 00:55:43]} {[%emt 00:06:09]} Be7 {[%clk 00:49:46]} {[%emt
00:10:47]} 12. Nd2 {[%clk 00:51:36]} {[%emt 00:04:37]} Rc8 {[%clk 00:39:07]}
{[%emt 00:11:09]} 13. Nd5 {[%clk 00:50:07]} {[%emt 00:01:59]} Bxd5 {[%clk
00:37:37]} {[%emt 00:02:00]} 14. exd5 {[%clk 00:50:20]} {[%emt 00:00:17]} Nb8
{[%clk 00:36:53]} {[%emt 00:01:14]} 15. c4 {[%clk 00:49:53]} {[%emt 00:00:57]}
Nbd7 {[%clk 00:36:55]} {[%emt 00:00:28]} 16. b4 {[%clk 00:49:55]} {[%emt
00:00:27]} b6 {[%clk 00:37:12]} {[%emt 00:00:13]} 17. f4 {[%clk 00:47:53]}
{[%emt 00:02:32]} O-O {[%clk 00:37:18]} {[%emt 00:00:24]} 18. Qf5 {[%clk
00:44:48]} {[%emt 00:03:36]} a5 {[%clk 00:32:20]} {[%emt 00:05:28]} 19. Bd3
{[%clk 00:39:31]} {[%emt 00:05:46]} axb4 {[%clk 00:29:56]} {[%emt 00:02:54]} 20.
axb4 {[%clk 00:39:38]} {[%emt 00:00:25]} Ra8 {[%clk 00:27:21]} {[%emt
00:03:04]} 21. Bc2 {[%clk 00:36:32]} {[%emt 00:03:36]} Rxa1 {[%clk 00:23:19]}
{[%emt 00:04:32]} 22. Rxa1 {[%clk 00:36:49]} {[%emt 00:00:13]} Qc7 {[%clk
00:23:37]} {[%emt 00:00:12]} 23. fxe5 {[%clk 00:25:29]} {[%emt 00:11:50]} Nxe5
{[%clk 00:21:37]} {[%emt 00:02:29]} 24. Bb3 {[%clk 00:24:54]} {[%emt 00:01:05]}
Nfg4 {[%clk 00:16:24]} {[%emt 00:05:43]} 25. Bd4 {[%clk 00:24:41]} {[%emt
00:00:44]} Bg5 {[%clk 00:16:46]} {[%emt 00:00:07]} 26. Nf1 {[%clk 00:21:59]}
{[%emt 00:03:13]} g6 {[%clk 00:15:08]} {[%emt 00:02:08]} 27. Qc2 {[%clk
00:21:03]} {[%emt 00:01:25]} Nd7 {[%clk 00:14:20]} {[%emt 00:01:18]} 28. Ng3
{[%clk 00:17:59]} {[%emt 00:03:35]} Bf6 {[%clk 00:12:42]} {[%emt 00:02:08]} 29.
Bxf6 {[%clk 00:17:20]} {[%emt 00:01:09]} Ngxf6 {[%clk 00:12:59]} {[%emt
00:00:13]} 30. Qf2 {[%clk 00:17:29]} {[%emt 00:00:20]} Re8 {[%clk 00:11:50]}
{[%emt 00:01:40]} 31. Qd4 {[%clk 00:13:43]} {[%emt 00:04:15]} Kg7 {[%clk
00:11:08]} {[%emt 00:01:13]} 32. Rf1 {[%clk 00:13:44]} {[%emt 00:00:29]} b5
{[%clk 00:06:52]} {[%emt 00:04:45]} 33. Kh1 {[%clk 00:06:38]} {[%emt 00:07:37]}
Qb6 {[%clk 00:04:07]} {[%emt 00:03:14]} 34. Qf4 {[%clk 00:06:02]} {[%emt
00:01:06]} Qe3 {[%clk 00:04:04]} {[%emt 00:00:33]} 35. Ba2 {[%clk 00:02:03]}
{[%emt 00:04:29]} Qxf4 {[%clk 00:02:38]} {[%emt 00:01:57]} 36. Rxf4 {[%clk
00:02:29]} {[%emt 00:00:04]} Ra8 {[%clk 00:02:21]} {[%emt 00:00:47]} 37. Rf2
{[%clk 00:02:32]} {[%emt 00:00:26]} bxc4 {[%clk 00:02:01]} {[%emt 00:00:51]} 38.
Bxc4 {[%clk 00:02:54]} {[%emt 00:00:08]} Ra1+ {[%clk 00:02:09]} {[%emt
00:00:22]} 39. Rf1 {[%clk 00:02:26]} {[%emt 00:00:57]} Rxf1+ {[%clk 00:02:17]}
{[%emt 00:00:23]} 40. Nxf1 {[%clk 00:02:52]} {[%emt 00:00:04]} Nb6 {[%clk
00:02:05]} {[%emt 00:00:42]} 41. Ne3 {[%clk 00:03:10]} {[%emt 00:00:11]} Ne4
{[%clk 00:25:43]} {[%emt 00:06:52]} 42. Bb5 {[%clk 00:31:35]} {[%emt 00:02:06]}
f5 {[%clk 00:24:58]} {[%emt 00:01:14]} 43. g3 {[%clk 00:31:40]} {[%emt
00:00:26]} Kf6 {[%clk 00:25:04]} {[%emt 00:00:24]} 44. Kg2 {[%clk 00:32:06]}
{[%emt 00:00:03]} Nc3 {[%clk 00:21:31]} {[%emt 00:04:04]} 45. Bc6 {[%clk
00:32:26]} {[%emt 00:00:09]} Ke5 {[%clk 00:20:53]} {[%emt 00:01:08]} 46. Be8
{[%clk 00:23:26]} {[%emt 00:09:31]} Ncxd5 {[%clk 00:17:02]} {[%emt 00:04:21]}
47. Nxd5 {[%clk 00:23:34]} {[%emt 00:00:22]} Nxd5 {[%clk 00:17:30]} {[%emt
00:00:01]} 48. Bxg6 {[%clk 00:23:49]} {[%emt 00:00:15]} Nxb4 {[%clk 00:17:57]}
{[%emt 00:00:03]} 49. Kf3 {[%clk 00:23:26]} {[%emt 00:00:53]} Nc6 {[%clk
00:17:52]} {[%emt 00:00:36]} 50. Ke3 {[%clk 00:23:44]} {[%emt 00:00:12]} Nd8
{[%clk 00:17:26]} {[%emt 00:00:56]} 51. Be8 {[%clk 00:22:57]} {[%emt 00:01:16]}
Ne6 {[%clk 00:17:42]} {[%emt 00:00:14]} 52. Ba4 {[%clk 00:21:11]} {[%emt
00:02:16]} Ng7 {[%clk 00:17:30]} {[%emt 00:00:42]} 53. Bd7 {[%clk 00:21:02]}
{[%emt 00:00:39]} Nh5 {[%clk 00:17:33]} {[%emt 00:00:27]} 54. Kf3 {[%clk
00:20:43]} {[%emt 00:00:50]} Nf6 {[%clk 00:17:56]} {[%emt 00:00:06]} 55. Bc8
{[%clk 00:20:29]} {[%emt 00:00:44]} Nh7 {[%clk 00:15:56]} {[%emt 00:02:30]} 56.
Ke3 {[%clk 00:20:04]} {[%emt 00:00:55]} Ng5 {[%clk 00:16:04]} {[%emt 00:00:21]}
57. Bb7 {[%clk 00:18:26]} {[%emt 00:02:10]} d5 {[%clk 00:15:21]} {[%emt
00:01:13]} 58. Bc8 {[%clk 00:18:28]} {[%emt 00:00:27]} Ne4 {[%clk 00:15:28]}
{[%emt 00:00:23]} 59. Kf3 {[%clk 00:18:06]} {[%emt 00:00:52]} Nc5 {[%clk
00:15:45]} {[%emt 00:00:12]} 60. Ke3 {[%clk 00:18:16]} {[%emt 00:00:21]} Ne4
{[%clk 00:14:50]} {[%emt 00:01:26]} 61. Kf3 {[%clk 00:18:31]} {[%emt 00:00:15]}
Nf6 {[%clk 00:15:10]} {[%emt 00:00:09]} 62. h4 {[%clk 00:12:17]} {[%emt
00:06:45]} d4 {[%clk 00:12:50]} {[%emt 00:02:49]} 63. Ba6 {[%clk 00:12:33]}
{[%emt 00:00:15]} Nd5 {[%clk 00:10:06]} {[%emt 00:03:13]} 64. Bd3 {[%clk
00:08:44]} {[%emt 00:04:20]} Ne3 {[%clk 00:10:04]} {[%emt 00:00:31]} 65. Ba6
{[%clk 00:08:56]} {[%emt 00:00:19]} Kd5 {[%clk 00:08:32]} {[%emt 00:02:02]} 66.
Bd3 {[%clk 00:06:01]} {[%emt 00:03:25]} Kc5 {[%clk 00:08:13]} {[%emt 00:00:49]}
67. Ke2 {[%clk 00:05:27]} {[%emt 00:01:04]} Kb4 {[%clk 00:06:32]} {[%emt
00:02:11]} 68. Kd2 {[%clk 00:03:33]} {[%emt 00:02:24]} Nc4+ {[%clk 00:06:26]}
{[%emt 00:00:36]} 69. Kc2 {[%clk 00:03:41]} {[%emt 00:00:21]} Nd6 {[%clk
00:06:42]} {[%emt 00:00:14]} 70. Kb2 {[%clk 00:03:55]} {[%emt 00:00:17]} Kc5
{[%clk 00:05:37]} {[%emt 00:01:34]} 71. Kc2 {[%clk 00:03:31]} {[%emt 00:00:54]}
Kd5 {[%clk 00:06:00]} {[%emt 00:00:07]} 72. Kd2 {[%clk 00:03:47]} {[%emt
00:00:14]} Ne4+ {[%clk 00:05:25]} {[%emt 00:01:06]} 73. Ke2 {[%clk 00:04:13]}
{[%emt 00:00:04]} Nxg3+ {[%clk 00:05:11]} {[%emt 00:00:43]} 74. Kf3 {[%clk
00:04:38]} {[%emt 00:00:06]} Ne4 {[%clk 00:05:31]} {[%emt 00:00:10]} 75. Kf4
{[%clk 00:05:03]} {[%emt 00:00:05]} Nd6 {[%clk 00:05:50]} {[%emt 00:00:10]} 76.
h5 {[%clk 00:05:27]} {[%emt 00:00:06]} Ke6 {[%clk 00:03:36]} {[%emt 00:02:44]}
77. Bb1 {[%clk 00:04:32]} {[%emt 00:01:26]} Kf6 {[%clk 00:01:43]} {[%emt
00:02:22]} 78. Bd3 {[%clk 00:04:15]} {[%emt 00:00:47]} Ke6 {[%clk 00:01:40]}
{[%emt 00:00:34]} 79. Bb1 {[%clk 00:04:34]} {[%emt 00:00:10]} Kf6 {[%clk
00:02:07]} {[%emt 00:00:03]} 80. Bd3 {[%clk 00:04:41]} {[%emt 00:00:23]} Nf7
{[%clk 00:01:47]} {[%emt 00:00:50]} 81. Bxf5 {[%clk 00:04:27]} {[%emt
00:00:45]} Ne5 {[%clk 00:02:13]} {[%emt 00:00:03]} 82. Bh7 {[%clk 00:04:15]}
{[%emt 00:00:42]} d3 {[%clk 00:01:34]} {[%emt 00:01:09]} 83. Ke3 {[%clk
00:04:35]} {[%emt 00:00:10]} Kg5 {[%clk 00:01:56]} {[%emt 00:00:08]} 84. Bxd3
{[%clk 00:04:57]} {[%emt 00:00:09]} Kxh5 {[%clk 00:02:14]} {[%emt 00:00:12]} 85.
Bb5 {[%clk 00:05:22]} {[%emt 00:00:04]} Kg5 {[%clk 00:02:11]} {[%emt 00:00:33]}
86. Be2 {[%clk 00:05:23]} {[%emt 00:00:30]} h5 {[%clk 00:02:21]} {[%emt
00:00:19]} 87. Bxh5 {[%clk 00:05:49]} {[%emt 00:00:04]} Kxh5 {[%emt 00:00:04]}
88. Ke4 {[%emt 00:00:17]} 1/2-1/2

[Event "The Elitserien 2024/25: round 1 - 3"]
[Site "Scandic Infra City, Kanalvagen 10, Upplands Vasby, Sweden"]
[Date "2024.10.05"]
[Round "2.2"]
[White "Garriga Cazorla, Pere"]
[Black "Lokander, Martin"]
[Result "1/2-1/2"]
[TimeControl "90 minutes for 40 moves + 30 minutes for the rest of the game + 30 seconds per move from move one."]
[WhiteTitle "IM"]
[BlackTitle "IM"]
[WhiteFideId "32011601"]
[BlackFideId "1709569"]
[WhiteElo "2467"]
[BlackElo "2469"]

1. d4 {[%clk 01:30:57]} {[%emt 00:00:02]} Nf6 {[%clk 01:28:31]} {[%emt
00:02:30]} 2. c4 {[%clk 01:31:00]} {[%emt 00:00:26]} c5 {[%clk 01:27:58]}
{[%emt 00:01:04]} 3. d5 {[%clk 01:30:41]} {[%emt 00:00:48]} b5 {[%clk
01:28:18]} {[%emt 00:00:11]} 4. cxb5 {[%clk 01:31:05]} {[%emt 00:00:05]} a6
{[%clk 01:28:44]} {[%emt 00:00:04]} 5. bxa6 {[%clk 01:31:30]} {[%emt 00:00:05]}
e6 {[%clk 01:29:12]} {[%emt 00:00:03]} 6. Nc3 {[%clk 01:31:56]} {[%emt
00:00:03]} exd5 {[%clk 01:29:30]} {[%emt 00:00:12]} 7. Nxd5 {[%clk 01:32:19]}
{[%emt 00:00:06]} Nxa6 {[%clk 01:29:56]} {[%emt 00:00:05]} 8. Nf3 {[%clk
01:20:31]} {[%emt 00:12:18]} Nxd5 {[%clk 01:30:07]} {[%emt 00:00:20]} 9. Qxd5
{[%clk 01:19:20]} {[%emt 00:01:40]} Nc7 {[%clk 01:30:32]} {[%emt 00:00:05]} 10.
Qd1 {[%clk 01:14:42]} {[%emt 00:05:08]} d5 {[%clk 01:30:50]} {[%emt 00:00:13]}
11. e3 {[%clk 01:06:20]} {[%emt 00:08:51]} Be7 {[%clk 01:24:28]} {[%emt
00:06:53]} 12. Be2 {[%clk 00:56:03]} {[%emt 00:10:48]} O-O {[%clk 01:24:33]}
{[%emt 00:00:24]} 13. O-O {[%clk 00:56:26]} {[%emt 00:00:06]} Ba6 {[%clk
01:19:13]} {[%emt 00:05:51]} 14. Bd2 {[%clk 00:51:30]} {[%emt 00:05:27]} Bf6
{[%clk 01:16:51]} {[%emt 00:02:51]} 15. Bxa6 {[%clk 00:47:08]} {[%emt
00:04:51]} Rxa6 {[%clk 01:13:59]} {[%emt 00:03:23]} 16. Bc3 {[%clk 00:47:31]}
{[%emt 00:00:06]} Bxc3 {[%clk 01:11:50]} {[%emt 00:02:40]} 17. bxc3 {[%clk
00:47:32]} {[%emt 00:00:29]} Ra3 {[%clk 01:08:13]} {[%emt 00:04:06]} 18. Qc1
{[%clk 00:40:37]} {[%emt 00:07:25]} Qa8 {[%clk 01:03:45]} {[%emt 00:04:58]} 19.
c4 {[%clk 00:38:49]} {[%emt 00:02:19]} Rxa2 {[%clk 01:01:02]} {[%emt 00:03:13]}
20. Rxa2 {[%clk 00:36:55]} {[%emt 00:02:23]} Qxa2 {[%clk 01:01:26]} {[%emt
00:00:06]} 21. cxd5 {[%clk 00:36:54]} {[%emt 00:00:32]} Qxd5 {[%clk 01:01:49]}
{[%emt 00:00:06]} 22. e4 {[%clk 00:34:17]} {[%emt 00:03:07]} Qh5 {[%clk
00:56:46]} {[%emt 00:05:34]} 23. Rd1 {[%clk 00:30:45]} {[%emt 00:04:02]} Ne6
{[%clk 00:56:20]} {[%emt 00:00:55]} 24. h3 {[%clk 00:30:46]} {[%emt 00:00:29]}
h6 {[%clk 00:55:12]} {[%emt 00:01:39]} 25. Rd5 {[%clk 00:23:42]} {[%emt
00:07:33]} Qg6 {[%clk 00:55:16]} {[%emt 00:00:26]} 26. Rf5 {[%clk 00:22:43]}
{[%emt 00:01:30]} Qh7 {[%emt 00:15:14]} 1/2-1/2

[Event "The Elitserien 2024/25: round 1 - 3"]
[Site "Scandic Infra City, Kanalvagen 10, Upplands Vasby, Sweden"]
[Date "2024.10.05"]
[Round "2.3"]
[White "Georgiadis, Nico"]
[Black "Domingo Nunez, Ruben"]
[Result "1-0"]
[TimeControl "90 minutes for 40 moves + 30 minutes for the rest of the game + 30 seconds per move from move one."]
[WhiteTitle "GM"]
[BlackTitle "IM"]
[WhiteFideId "1300113"]
[BlackFideId "22245570"]
[WhiteElo "2510"]
[BlackElo "2390"]

1. d4 {[%clk 01:30:56]} {[%emt 00:00:02]} g6 {[%clk 01:26:43]} {[%emt
00:04:17]} 2. e4 {[%clk 01:31:08]} {[%emt 00:00:18]} Bg7 {[%clk 01:27:06]}
{[%emt 00:00:08]} 3. Nc3 {[%clk 01:31:31]} {[%emt 00:00:06]} c6 {[%clk
01:27:17]} {[%emt 00:00:19]} 4. h3 {[%clk 01:30:26]} {[%emt 00:01:35]} d5
{[%clk 01:23:48]} {[%emt 00:04:00]} 5. e5 {[%clk 01:30:15]} {[%emt 00:00:41]}
f6 {[%clk 01:24:15]} {[%emt 00:00:04]} 6. f4 {[%clk 01:30:28]} {[%emt
00:00:16]} fxe5 {[%clk 01:24:42]} {[%emt 00:00:04]} 7. fxe5 {[%clk 01:26:04]}
{[%emt 00:04:53]} Nh6 {[%clk 01:25:08]} {[%emt 00:00:04]} 8. Bf4 {[%clk
01:25:09]} {[%emt 00:01:25]} e6 {[%clk 00:56:04]} {[%emt 00:29:34]} 9. Qd2
{[%clk 01:15:09]} {[%emt 00:10:31]} Nf7 {[%clk 00:53:21]} {[%emt 00:03:12]} 10.
Nf3 {[%clk 01:14:42]} {[%emt 00:00:56]} a6 {[%clk 00:52:42]} {[%emt 00:01:10]}
11. O-O-O {[%clk 01:07:17]} {[%emt 00:07:54]} b5 {[%clk 00:48:40]} {[%emt
00:04:33]} 12. h4 {[%clk 01:02:07]} {[%emt 00:05:40]} c5 {[%clk 00:20:51]}
{[%emt 00:28:19]} 13. dxc5 {[%clk 01:01:32]} {[%emt 00:01:04]} Nc6 {[%clk
00:21:20]} {[%emt 00:00:02]} 14. h5 {[%clk 00:52:29]} {[%emt 00:09:33]} g5
{[%clk 00:20:32]} {[%emt 00:01:18]} 15. h6 {[%clk 00:33:19]} {[%emt 00:19:39]}
Bxh6 {[%clk 00:15:37]} {[%emt 00:05:26]} 16. Rxh6 {[%clk 00:33:40]} {[%emt
00:00:09]} gxf4 {[%clk 00:16:04]} {[%emt 00:00:03]} 17. Nxd5 {[%clk 00:22:57]}
{[%emt 00:11:13]} Nxh6 {[%clk 00:13:19]} {[%emt 00:03:16]} 18. Nf6+ {[%clk
00:23:22]} {[%emt 00:00:04]} Ke7 {[%clk 00:13:48]} {[%emt 00:00:01]} 19. Qxf4
{[%clk 00:23:30]} {[%emt 00:00:22]} Qf8 {[%clk 00:14:13]} {[%emt 00:00:05]} 20.
Qg5 {[%clk 00:23:00]} {[%emt 00:00:59]} Nf7 {[%clk 00:14:41]} {[%emt 00:00:02]}
21. Rd7+ {[%clk 00:23:22]} {[%emt 00:00:08]} Bxd7 {[%clk 00:14:58]} {[%emt
00:00:14]} 22. Nd5+ {[%clk 00:23:48]} {[%emt 00:00:04]} Ke8 {[%clk 00:15:25]}
{[%emt 00:00:03]} 23. Nc7# {[%clk 00:24:14]} {[%emt 00:00:03]} 1-0

[Event "The Elitserien 2024/25: round 1 - 3"]
[Site "Scandic Infra City, Kanalvagen 10, Upplands Vasby, Sweden"]
[Date "2024.10.05"]
[Round "2.4"]
[White "Schneider, Stefan"]
[Black "Westerberg, Jonathan"]
[Result "1/2-1/2"]
[TimeControl "90 minutes for 40 moves + 30 minutes for the rest of the game + 30 seconds per move from move one."]
[WhiteTitle "IM"]
[BlackTitle "GM"]
[WhiteFideId "1703013"]
[BlackFideId "1701754"]
[WhiteElo "2384"]
[BlackElo "2469"]

1. d4 {[%clk 01:30:49]} {[%emt 00:00:10]} d5 {[%clk 01:30:54]} {[%emt
00:00:07]} 2. c4 {[%clk 01:31:03]} {[%emt 00:00:16]} dxc4 {[%clk 01:31:18]}
{[%emt 00:00:06]} 3. e3 {[%clk 01:31:05]} {[%emt 00:00:27]} e5 {[%clk
01:29:34]} {[%emt 00:02:15]} 4. Bxc4 {[%clk 01:31:03]} {[%emt 00:00:33]} exd4
{[%clk 01:29:46]} {[%emt 00:00:18]} 5. exd4 {[%clk 01:29:43]} {[%emt 00:01:50]}
Bd6 {[%clk 01:29:30]} {[%emt 00:00:45]} 6. Nf3 {[%clk 01:29:56]} {[%emt
00:00:17]} Nf6 {[%clk 01:29:56]} {[%emt 00:00:05]} 7. Qe2+ {[%clk 01:29:44]}
{[%emt 00:00:41]} Qe7 {[%clk 01:29:33]} {[%emt 00:00:52]} 8. Qxe7+ {[%clk
01:30:01]} {[%emt 00:00:14]} Bxe7 {[%clk 01:29:56]} {[%emt 00:00:06]} 9. O-O
{[%clk 01:30:03]} {[%emt 00:00:29]} O-O {[%clk 01:30:19]} {[%emt 00:00:07]} 10.
Re1 {[%clk 01:27:27]} {[%emt 00:03:06]} Bd6 {[%clk 01:30:41]} {[%emt 00:00:08]}
11. Nc3 {[%clk 01:24:10]} {[%emt 00:03:47]} a6 {[%clk 01:31:03]} {[%emt
00:00:07]} 12. Bg5 {[%clk 01:16:00]} {[%emt 00:08:40]} Nbd7 {[%clk 01:30:04]}
{[%emt 00:01:30]} 13. Ne5 {[%clk 01:12:25]} {[%emt 00:04:05]} b5 {[%clk
01:24:15]} {[%emt 00:06:19]} 14. Bb3 {[%clk 00:50:48]} {[%emt 00:22:06]} Bb7
{[%clk 01:18:02]} {[%emt 00:06:43]} 15. Nxd7 {[%clk 00:44:11]} {[%emt
00:07:08]} Nxd7 {[%clk 01:18:05]} {[%emt 00:00:26]} 16. Be7 {[%clk 00:39:44]}
{[%emt 00:04:58]} Rfe8 {[%clk 01:17:48]} {[%emt 00:00:47]} 17. Bxd6 {[%clk
00:40:08]} {[%emt 00:00:06]} cxd6 {[%clk 01:18:10]} {[%emt 00:00:07]} 18. Bd5
{[%clk 00:39:51]} {[%emt 00:00:48]} Bxd5 {[%clk 01:08:19]} {[%emt 00:10:20]} 19.
Nxd5 {[%clk 00:40:19]} {[%emt 00:00:03]} Nf6 {[%clk 00:59:48]} {[%emt
00:09:01]} 20. Nxf6+ {[%clk 00:34:52]} {[%emt 00:05:57]} gxf6 {[%clk 01:00:10]}
{[%emt 00:00:07]} 21. Kf1 {[%clk 00:34:35]} {[%emt 00:00:48]} Rac8 {[%clk
00:54:44]} {[%emt 00:05:55]} 22. Rxe8+ {[%clk 00:32:35]} {[%emt 00:02:31]} Rxe8
{[%clk 00:55:09]} {[%emt 00:00:06]} 23. Rc1 {[%clk 00:32:33]} {[%emt 00:00:31]}
Re4 {[%clk 00:55:18]} {[%emt 00:00:20]} 24. Rd1 {[%clk 00:31:02]} {[%emt
00:02:03]} Kf8 {[%clk 00:53:57]} {[%emt 00:01:50]} 25. f3 {[%clk 00:28:51]}
{[%emt 00:02:41]} Rh4 {[%clk 00:53:45]} {[%emt 00:00:41]} 26. h3 {[%clk
00:21:16]} {[%emt 00:08:05]} Ke7 {[%clk 00:52:55]} {[%emt 00:01:20]} 27. Kf2
{[%clk 00:20:21]} {[%emt 00:01:25]} Ke6 {[%clk 00:51:21]} {[%emt 00:02:04]} 28.
Kg3 {[%clk 00:11:46]} {[%emt 00:09:05]} Rh5 {[%clk 00:50:15]} {[%emt 00:01:37]}
29. f4 {[%clk 00:11:44]} {[%emt 00:00:32]} b4 {[%clk 00:50:09]} {[%emt
00:00:36]} 30. Re1+ {[%clk 00:08:53]} {[%emt 00:03:21]} Kd7 {[%clk 00:47:23]}
{[%emt 00:03:16]} 31. b3 {[%clk 00:08:20]} {[%emt 00:01:03]} Rd5 {[%clk
00:46:11]} {[%emt 00:01:40]} 32. Rd1 {[%clk 00:08:33]} {[%emt 00:00:19]} Ra5
{[%clk 00:46:10]} {[%emt 00:00:30]} 33. Rd2 {[%clk 00:07:22]} {[%emt 00:01:42]}
Ke6 {[%clk 00:46:22]} {[%emt 00:00:18]} 34. Kg4 {[%clk 00:04:41]} {[%emt
00:03:11]} h5+ {[%clk 00:43:48]} {[%emt 00:03:04]} 35. Kf3 {[%clk 00:03:17]}
{[%emt 00:01:55]} Kd5 {[%clk 00:42:13]} {[%emt 00:02:04]} 36. f5 {[%clk
00:01:20]} {[%emt 00:02:27]} Rb5 {[%clk 00:36:35]} {[%emt 00:06:08]} 37. g4
{[%clk 00:01:09]} {[%emt 00:00:41]} h4 {[%clk 00:29:09]} {[%emt 00:07:56]} 38.
Kf4 {[%clk 00:00:40]} {[%emt 00:00:59]} Rb8 {[%clk 00:29:33]} {[%emt 00:00:05]}
39. Re2 {[%clk 00:00:34]} {[%emt 00:00:37]} Kxd4 {[%clk 00:26:59]} {[%emt
00:03:04]} 40. Re7 {[%clk 00:00:58]} {[%emt 00:00:06]} Rf8 {[%clk 00:26:56]}
{[%emt 00:00:31]} 41. Rd7 {[%clk 00:15:59]} {[%emt 00:15:30]} Kc5 {[%clk
00:52:42]} {[%emt 00:04:45]} 42. Rc7+ {[%clk 00:15:47]} {[%emt 00:00:42]} Kb6
{[%clk 00:52:31]} {[%emt 00:00:41]} 43. Rd7 {[%clk 00:15:55]} {[%emt 00:00:22]}
Kc6 {[%clk 00:52:48]} {[%emt 00:00:13]} 44. Ra7 {[%clk 00:16:03]} {[%emt
00:00:22]} Kb6 {[%clk 00:53:06]} {[%emt 00:00:11]} 45. Rd7 {[%clk 00:16:27]}
{[%emt 00:00:06]} Kc6 {[%clk 00:52:56]} {[%emt 00:00:40]} 46. Ra7 {[%clk
00:16:54]} {[%emt 00:00:04]} Kb6 {[%clk 00:53:17]} {[%emt 00:00:08]} 47. Ke4
{[%emt 00:00:27]} 1/2-1/2